[Event "19th Rochefort Chess Festival - Masters"]
[Site "Rochefort, France"]
[Date "2020.02.23"]
[Round "2.2"]
[White "Sahil, Tickoo"]
[Black "Van Den Doel, Erik"]
[Result "0-1"]
[TimeControl "1h30/40 - 30' + [30'']"]
[WhiteElo "2275"]
[BlackElo "2583"]

1. d4 {[%clk 01:25:28]} {[%emt 00:05:31]} d5 {[%clk 01:29:41]} {[%emt
00:01:19]} 2. Bf4 {[%clk 01:25:49]} {[%emt 00:00:09]} Nf6 {[%clk 01:30:07]}
{[%emt 00:00:05]} 3. e3 {[%clk 01:26:14]} {[%emt 00:00:05]} Bg4 {[%clk
01:30:32]} {[%emt 00:00:05]} 4. Nf3 {[%clk 01:23:50]} {[%emt 00:02:54]} e6
{[%clk 01:30:35]} {[%emt 00:00:27]} 5. Nbd2 {[%clk 01:15:29]} {[%emt 00:08:51]}
Be7 {[%clk 01:26:15]} {[%emt 00:04:50]} 6. Bd3 {[%clk 01:10:00]} {[%emt
00:05:59]} O-O {[%clk 01:22:44]} {[%emt 00:04:01]} 7. c3 {[%clk 01:07:28]}
{[%emt 00:03:03]} c5 {[%clk 01:22:48]} {[%emt 00:00:27]} 8. Qb1 {[%clk
01:05:51]} {[%emt 00:02:06]} Nc6 {[%clk 01:18:34]} {[%emt 00:04:45]} 9. Ne5
{[%clk 01:04:26]} {[%emt 00:01:55]} Bh5 {[%clk 01:18:25]} {[%emt 00:00:38]} 10.
Bg5 {[%clk 00:58:50]} {[%emt 00:06:06]} cxd4 {[%clk 01:00:40]} {[%emt
00:18:16]} 11. Nxc6 {[%clk 00:49:39]} {[%emt 00:09:41]} bxc6 {[%clk 00:59:31]}
{[%emt 00:01:39]} 12. exd4 {[%clk 00:32:43]} {[%emt 00:17:26]} h6 {[%clk
00:57:15]} {[%emt 00:02:46]} 13. Bf4 {[%clk 00:29:55]} {[%emt 00:03:18]} c5
{[%clk 00:50:14]} {[%emt 00:07:31]} 14. dxc5 {[%clk 00:29:25]} {[%emt
00:00:59]} Bxc5 {[%clk 00:50:17]} {[%emt 00:00:27]} 15. O-O {[%clk 00:29:11]}
{[%emt 00:00:43]} Re8 {[%clk 00:41:41]} {[%emt 00:09:07]} 16. Nb3 {[%clk
00:21:50]} {[%emt 00:07:51]} Bd6 {[%clk 00:37:44]} {[%emt 00:04:27]} 17. Bxd6
{[%clk 00:21:52]} {[%emt 00:00:28]} Qxd6 {[%clk 00:38:09]} {[%emt 00:00:04]} 18.
f4 {[%clk 00:18:43]} {[%emt 00:03:39]} Rab8 {[%clk 00:29:21]} {[%emt 00:09:19]}
19. Nd4 {[%clk 00:18:05]} {[%emt 00:01:07]} Qb6 {[%emt 00:02:27]} 20. b4 {[%clk
00:14:40]} {[%emt 00:03:53]} Rbc8 {[%clk 00:27:27]} {[%emt 00:00:30]} 21. Qb2
{[%clk 00:14:41]} {[%emt 00:00:29]} Bg6 {[%clk 00:24:56]} {[%emt 00:03:01]} 22.
Bxg6 {[%clk 00:12:20]} {[%emt 00:02:51]} fxg6 {[%clk 00:25:22]} {[%emt
00:00:04]} 23. Rad1 {[%clk 00:10:32]} {[%emt 00:02:17]} Ne4 {[%clk 00:25:25]}
{[%emt 00:00:28]} 24. Kh1 {[%clk 00:03:04]} {[%emt 00:07:58]} Rxc3 {[%clk
00:22:30]} {[%emt 00:03:25]} 25. Rf3 {[%clk 00:02:32]} {[%emt 00:01:03]} Rec8
{[%clk 00:13:18]} {[%emt 00:09:42]} 26. h3 {[%clk 00:02:50]} {[%emt 00:00:11]}
Rxf3 {[%clk 00:13:02]} {[%emt 00:00:46]} 27. gxf3 {[%clk 00:03:14]} {[%emt
00:00:05]} Ng3+ {[%clk 00:13:16]} {[%emt 00:00:17]} 28. Kh2 {[%clk 00:03:15]}
{[%emt 00:00:29]} Nh5 {[%clk 00:13:36]} {[%emt 00:00:09]} 29. Qd2 {[%clk
00:01:03]} {[%emt 00:02:43]} Rf8 {[%clk 00:11:01]} {[%emt 00:03:05]} 30. Re1
{[%clk 00:00:34]} {[%emt 00:00:59]} Rxf4 {[%clk 00:08:27]} {[%emt 00:03:03]} 31.
Nxe6 {[%clk 00:00:38]} {[%emt 00:00:26]} Rxf3 {[%clk 00:08:52]} {[%emt
00:00:06]} 32. Qd4 {[%clk 00:00:39]} {[%emt 00:00:29]} Rf2+ {[%clk 00:05:06]}
{[%emt 00:04:16]} 33. Kg1 {[%clk 00:01:00]} {[%emt 00:00:08]} Rxa2 {[%clk
00:05:25]} {[%emt 00:00:11]} 34. Qxb6 {[%clk 00:01:04]} {[%emt 00:00:26]} axb6
{[%clk 00:05:51]} {[%emt 00:00:04]} 35. Rd1 {[%clk 00:01:20]} {[%emt 00:00:14]}
Rb2 {[%clk 00:05:02]} {[%emt 00:01:20]} 36. Rxd5 {[%clk 00:00:42]} {[%emt
00:01:08]} Rxb4 {[%clk 00:05:11]} {[%emt 00:00:20]} 37. Rd7 {[%clk 00:00:32]}
{[%emt 00:00:40]} Re4 {[%clk 00:04:56]} {[%emt 00:00:44]} 38. Rd6 {[%clk
00:00:31]} {[%emt 00:00:31]} Kf7 {[%clk 00:03:57]} {[%emt 00:01:29]} 39. Nc7
{[%clk 00:00:41]} {[%emt 00:00:20]} Nf4 {[%clk 00:03:58]} {[%emt 00:00:29]} 40.
Rd7+ {[%clk 00:00:39]} {[%emt 00:00:33]} Re7 {[%clk 00:04:07]} {[%emt
00:00:20]} 0-1



[ePGN "0.1;DGT LiveChess/2.2.5"]

[Event "19th Rochefort Chess Festival - Masters"]
[Site "Rochefort, France"]
[Date "2020.02.23"]
[Round "3.5"]
[White "Bogdanov, Egor"]
[Black "Le Goff, Ronan"]
[Result "1/2-1/2"]
[TimeControl "1h30/40 - 30' + [30'']"]
[WhiteElo "2433"]
[BlackElo "2281"]

1. e4 {[%clk 01:30:57]} {[%emt 00:00:02]} e5 {[%clk 01:30:54]} {[%emt
00:00:07]} 2. d4 {[%clk 01:30:51]} {[%emt 00:00:36]} exd4 {[%clk 01:31:08]}
{[%emt 00:00:16]} 3. Nf3 {[%clk 01:31:15]} {[%emt 00:00:06]} Nc6 {[%clk
01:31:26]} {[%emt 00:00:11]} 4. c3 {[%clk 01:31:00]} {[%emt 00:00:46]} Nf6
{[%clk 01:31:38]} {[%emt 00:00:18]} 5. e5 {[%clk 01:31:19]} {[%emt 00:00:11]}
Nd5 {[%clk 01:31:56]} {[%emt 00:00:11]} 6. cxd4 {[%clk 01:31:29]} {[%emt
00:00:21]} Bb4+ {[%clk 01:32:17]} {[%emt 00:00:09]} 7. Nbd2 {[%clk 01:30:48]}
{[%emt 00:01:10]} d6 {[%clk 01:31:43]} {[%emt 00:01:04]} 8. Bb5 {[%clk
01:29:53]} {[%emt 00:01:26]} Nde7 {[%clk 01:26:15]} {[%emt 00:05:58]} 9. O-O
{[%clk 01:27:05]} {[%emt 00:03:19]} dxe5 {[%clk 01:11:01]} {[%emt 00:15:44]} 10.
dxe5 {[%clk 01:27:01]} {[%emt 00:00:34]} Bxd2 {[%clk 01:03:05]} {[%emt
00:08:25]} 11. Bxd2 {[%clk 01:22:13]} {[%emt 00:05:18]} Bg4 {[%clk 00:58:26]}
{[%emt 00:05:09]} 12. Bg5 {[%clk 01:14:28]} {[%emt 00:08:16]} Qxd1 {[%clk
00:55:55]} {[%emt 00:03:01]} 13. Rfxd1 {[%clk 01:13:03]} {[%emt 00:01:54]} a6
{[%clk 00:50:53]} {[%emt 00:05:33]} 14. Ba4 {[%clk 01:07:47]} {[%emt 00:05:46]}
O-O {[%clk 00:38:00]} {[%emt 00:13:22]} 15. Rac1 {[%clk 01:06:38]} {[%emt
00:01:40]} Rac8 {[%clk 00:36:36]} {[%emt 00:01:52]} 16. h3 {[%clk 00:54:23]}
{[%emt 00:12:46]} Bxf3 {[%clk 00:31:38]} {[%emt 00:05:28]} 17. gxf3 {[%clk
00:54:47]} {[%emt 00:00:06]} Ng6 {[%clk 00:30:25]} {[%emt 00:01:43]} 18. Bxc6
{[%clk 00:52:15]} {[%emt 00:03:02]} bxc6 {[%clk 00:30:32]} {[%emt 00:00:23]} 19.
Rxc6 {[%clk 00:47:24]} {[%emt 00:05:22]} Nxe5 {[%clk 00:30:22]} {[%emt
00:00:39]} 20. Rc3 {[%clk 00:47:52]} {[%emt 00:00:02]} f6 {[%clk 00:26:03]}
{[%emt 00:04:48]} 21. Bf4 {[%clk 00:48:01]} {[%emt 00:00:21]} Rf7 {[%clk
00:22:15]} {[%emt 00:04:17]} 22. Bxe5 {[%clk 00:47:50]} {[%emt 00:00:42]} fxe5
{[%clk 00:22:38]} {[%emt 00:00:08]} 23. Rd5 {[%clk 00:47:55]} {[%emt 00:00:25]}
Rb8 {[%clk 00:21:13]} {[%emt 00:01:54]} 24. b3 {[%clk 00:47:38]} {[%emt
00:00:48]} Rbf8 {[%clk 00:19:51]} {[%emt 00:01:52]} 25. Rxe5 {[%clk 00:34:49]}
{[%emt 00:13:19]} Rxf3 {[%clk 00:19:26]} {[%emt 00:00:54]} 26. Rxf3 {[%clk
00:35:16]} {[%emt 00:00:03]} Rxf3 {[%clk 00:19:45]} {[%emt 00:00:12]} 27. Kg2
{[%clk 00:35:37]} {[%emt 00:00:09]} Rc3 {[%clk 00:18:50]} {[%emt 00:01:24]} 28.
Re6 {[%clk 00:34:31]} {[%emt 00:01:36]} a5 {[%clk 00:18:24]} {[%emt 00:00:56]}
29. Re5 {[%clk 00:34:49]} {[%emt 00:00:13]} a4 {[%clk 00:17:18]} {[%emt
00:01:35]} 30. bxa4 {[%clk 00:35:12]} {[%emt 00:00:08]} Ra3 {[%clk 00:16:49]}
{[%emt 00:00:59]} 31. a5 {[%clk 00:35:32]} {[%emt 00:00:11]} Rxa2 {[%clk
00:17:09]} {[%emt 00:00:09]} 32. Rc5 {[%clk 00:35:53]} {[%emt 00:00:09]} Ra3
{[%clk 00:15:53]} {[%emt 00:01:47]} 33. h4 {[%clk 00:36:15]} {[%emt 00:00:08]}
c6 {[%clk 00:15:22]} {[%emt 00:01:01]} 34. h5 {[%clk 00:36:35]} {[%emt
00:00:10]} Kf7 {[%clk 00:15:34]} {[%emt 00:00:18]} 35. f3 {[%clk 00:37:01]}
{[%emt 00:00:05]} Ke7 {[%clk 00:13:21]} {[%emt 00:02:42]} 36. Kg3 {[%clk
00:37:13]} {[%emt 00:00:18]} g6 {[%clk 00:13:00]} {[%emt 00:00:51]} 37. hxg6
{[%clk 00:32:32]} {[%emt 00:05:11]} hxg6 {[%clk 00:12:12]} {[%emt 00:01:18]} 38.
Kf4 {[%clk 00:32:28]} {[%emt 00:00:34]} Kd6 {[%clk 00:08:54]} {[%emt 00:03:48]}
39. Rg5 {[%clk 00:32:51]} {[%emt 00:00:07]} Ke7 {[%clk 00:05:37]} {[%emt
00:03:47]} 40. Kg4 {[%clk 00:28:52]} {[%emt 00:04:29]} Kf6 {[%clk 00:05:03]}
{[%emt 00:01:05]} 41. f4 {[%clk 00:28:33]} {[%emt 00:00:49]} Kf7 {[%clk
00:03:57]} {[%emt 00:01:35]} 42. Rc5 {[%clk 00:28:49]} {[%emt 00:00:15]} Ra1
{[%clk 00:04:02]} {[%emt 00:00:25]} 43. Kf3 {[%clk 00:28:55]} {[%emt 00:00:25]}
Ra4 {[%clk 00:04:10]} {[%emt 00:00:22]} 44. Ke3 {[%clk 00:29:20]} {[%emt
00:00:05]} Ke7 {[%clk 00:04:07]} {[%emt 00:00:33]} 45. Rxc6 {[%clk 00:29:14]}
{[%emt 00:00:37]} Ra3+ {[%clk 00:03:25]} {[%emt 00:01:11]} 46. Ke4 {[%clk
00:29:42]} {[%emt 00:00:02]} Ra4+ {[%clk 00:03:29]} {[%emt 00:00:25]} 47. Kf3
{[%clk 00:30:06]} {[%emt 00:00:06]} Rxa5 {[%clk 00:03:54]} {[%emt 00:00:06]} 48.
Rxg6 {[%clk 00:30:33]} {[%emt 00:00:03]} Kf7 {[%clk 00:03:44]} {[%emt
00:00:39]} 49. Rb6 {[%clk 00:30:59]} {[%emt 00:00:05]} Rc5 {[%clk 00:03:22]}
{[%emt 00:00:52]} 50. Kg4 {[%clk 00:31:26]} {[%emt 00:00:04]} Ra5 {[%clk
00:03:42]} {[%emt 00:00:10]} 51. Rb4 {[%clk 00:31:42]} {[%emt 00:00:14]} Kf6
{[%clk 00:03:52]} {[%emt 00:00:19]} 52. f5 {[%clk 00:31:58]} {[%emt 00:00:15]}
Ra1 {[%clk 00:04:00]} {[%emt 00:00:22]} 53. Rb6+ {[%clk 00:32:25]} {[%emt
00:00:03]} Kf7 {[%clk 00:04:19]} {[%emt 00:00:11]} 54. Kg5 {[%clk 00:32:52]}
{[%emt 00:00:04]} Rg1+ {[%clk 00:04:33]} {[%emt 00:00:15]} 1/2-1/2

[Event "19th Rochefort Chess Festival - Masters"]
[Site "Rochefort, France"]
[Date "2020.02.23"]
[Round "3.1"]
[White "Shirazi, Kamran"]
[Black "Gareyev, Timur"]
[Result "0-1"]
[TimeControl "1h30/40 - 30' + [30'']"]
[WhiteElo "2362"]
[BlackElo "2607"]

1. e4 {[%clk 01:08:58]} {[%emt 00:22:00]} e5 {[%clk 01:30:59]} {[%emt
00:00:02]} 2. Nf3 {[%clk 01:08:22]} {[%emt 00:01:05]} Nc6 {[%clk 01:31:22]}
{[%emt 00:00:07]} 3. Bb5 {[%clk 01:08:27]} {[%emt 00:00:25]} a6 {[%clk
01:27:31]} {[%emt 00:04:21]} 4. Ba4 {[%clk 01:08:46]} {[%emt 00:00:11]} d6
{[%clk 01:27:55]} {[%emt 00:00:06]} 5. c3 {[%clk 01:03:54]} {[%emt 00:05:21]}
Nf6 {[%clk 01:27:48]} {[%emt 00:00:37]} 6. d4 {[%clk 01:03:37]} {[%emt
00:00:47]} Bd7 {[%clk 01:23:22]} {[%emt 00:04:56]} 7. O-O {[%clk 01:00:55]}
{[%emt 00:03:12]} g6 {[%clk 01:12:18]} {[%emt 00:11:35]} 8. Re1 {[%clk
00:52:23]} {[%emt 00:09:01]} Bg7 {[%clk 01:11:06]} {[%emt 00:01:42]} 9. Bxc6
{[%clk 00:49:56]} {[%emt 00:02:57]} Bxc6 {[%clk 01:11:35]} {[%emt 00:00:02]} 10.
dxe5 {[%clk 00:50:13]} {[%emt 00:00:12]} Nxe4 {[%clk 01:12:03]} {[%emt
00:00:02]} 11. exd6 {[%clk 00:43:41]} {[%emt 00:07:02]} O-O {[%clk 01:12:31]}
{[%emt 00:00:02]} 12. Nd4 {[%clk 00:42:33]} {[%emt 00:01:37]} Qxd6 {[%clk
01:10:56]} {[%emt 00:02:05]} 13. Nxc6 {[%clk 00:35:58]} {[%emt 00:07:05]} Qxc6
{[%clk 01:07:37]} {[%emt 00:03:49]} 14. Nd2 {[%clk 00:33:08]} {[%emt 00:03:20]}
Rad8 {[%clk 01:06:00]} {[%emt 00:02:07]} 15. Qc2 {[%clk 00:31:23]} {[%emt
00:02:15]} Nxc3 {[%clk 00:55:48]} {[%emt 00:10:41]} 16. Nb3 {[%clk 00:19:28]}
{[%emt 00:12:25]} Rfe8 {[%clk 00:47:26]} {[%emt 00:08:52]} 17. Bg5 {[%clk
00:18:14]} {[%emt 00:01:44]} Rd5 {[%clk 00:42:10]} {[%emt 00:05:46]} 18. h4
{[%clk 00:11:47]} {[%emt 00:06:57]} h6 {[%clk 00:35:34]} {[%emt 00:07:06]} 19.
Bxh6 {[%clk 00:07:35]} {[%emt 00:04:41]} Rxe1+ {[%clk 00:34:01]} {[%emt
00:02:04]} 20. Rxe1 {[%clk 00:08:03]} {[%emt 00:00:02]} Bxh6 {[%clk 00:34:08]}
{[%emt 00:00:23]} 21. bxc3 {[%clk 00:07:32]} {[%emt 00:01:01]} b5 {[%clk
00:30:40]} {[%emt 00:03:58]} 22. Re4 {[%clk 00:06:24]} {[%emt 00:01:38]} Bg7
{[%clk 00:29:53]} {[%emt 00:01:17]} 23. c4 {[%clk 00:06:37]} {[%emt 00:00:17]}
Rd8 {[%clk 00:12:18]} {[%emt 00:18:05]} 24. Qe2 {[%clk 00:05:11]} {[%emt
00:01:56]} b4 {[%clk 00:09:43]} {[%emt 00:03:05]} 25. h5 {[%clk 00:05:11]}
{[%emt 00:00:30]} gxh5 {[%clk 00:09:55]} {[%emt 00:00:18]} 26. Rh4 {[%clk
00:04:53]} {[%emt 00:00:47]} Re8 {[%clk 00:10:24]} {[%emt 00:00:02]} 27. Qxh5
{[%clk 00:05:08]} {[%emt 00:00:14]} Re1+ {[%clk 00:09:28]} {[%emt 00:01:26]} 28.
Kh2 {[%clk 00:05:37]} {[%emt 00:00:01]} Qg6 {[%clk 00:09:45]} {[%emt 00:00:13]}
29. Qxg6 {[%clk 00:04:57]} {[%emt 00:01:09]} fxg6 {[%clk 00:10:14]} {[%emt
00:00:02]} 30. c5 {[%clk 00:04:52]} {[%emt 00:00:36]} Bc3 {[%clk 00:09:50]}
{[%emt 00:00:54]} 31. Rc4 {[%clk 00:04:54]} {[%emt 00:00:28]} Re2 {[%clk
00:09:41]} {[%emt 00:00:38]} 32. a3 {[%clk 00:05:12]} {[%emt 00:00:12]} Rc2
{[%clk 00:09:38]} {[%emt 00:00:33]} 33. Nd4 {[%clk 00:04:36]} {[%emt 00:01:06]}
b3 {[%clk 00:02:24]} {[%emt 00:07:44]} 34. Nxc2 {[%clk 00:05:01]} {[%emt
00:00:05]} b2 {[%clk 00:02:48]} {[%emt 00:00:06]} 35. Rxc3 {[%clk 00:05:15]}
{[%emt 00:00:16]} b1=Q {[%clk 00:03:15]} {[%emt 00:00:03]} 36. Nb4 {[%clk
00:02:06]} {[%emt 00:03:39]} a5 {[%clk 00:03:08]} {[%emt 00:00:36]} 37. Nd5
{[%clk 00:02:32]} {[%emt 00:00:04]} Kg7 {[%clk 00:02:21]} {[%emt 00:01:18]} 38.
Nf4 {[%clk 00:01:02]} {[%emt 00:02:00]} Qe4 {[%clk 00:01:58]} {[%emt 00:00:53]}
39. g3 {[%clk 00:01:19]} {[%emt 00:00:13]} Qe1 {[%clk 00:01:48]} {[%emt
00:00:40]} 40. Rf3 {[%clk 00:00:35]} {[%emt 00:01:15]} Kh6 {[%clk 00:00:37]}
{[%emt 00:01:42]} 41. Nd3 {[%clk 00:00:33]} {[%emt 00:00:32]} Qc3 {[%clk
00:00:43]} {[%emt 00:00:23]} 42. a4 {[%clk 00:00:56]} {[%emt 00:00:08]} Qc4
{[%clk 00:00:53]} {[%emt 00:00:19]} 43. Ne5 {[%clk 00:01:12]} {[%emt 00:00:14]}
Qxc5 {[%clk 00:00:51]} {[%emt 00:00:32]} 44. Re3 {[%clk 00:00:58]} {[%emt
00:00:45]} Qd4 {[%clk 00:01:02]} {[%emt 00:00:18]} 45. f4 {[%clk 00:00:59]}
{[%emt 00:00:30]} Kg7 {[%clk 00:00:41]} {[%emt 00:00:50]} 46. Ng4 {[%clk
00:01:20]} {[%emt 00:00:09]} Qd1 {[%clk 00:00:35]} {[%emt 00:00:36]} 47. Kh3
{[%clk 00:00:54]} {[%emt 00:00:56]} Qf1+ {[%clk 00:01:04]} {[%emt 00:00:02]} 48.
Kh2 {[%clk 00:01:17]} {[%emt 00:00:07]} Qd1 {[%clk 00:01:07]} {[%emt 00:00:26]}
49. Kh3 {[%clk 00:01:42]} {[%emt 00:00:05]} Qh1+ {[%clk 00:01:28]} {[%emt
00:00:09]} 50. Nh2 {[%clk 00:02:11]} {[%emt 00:00:02]} c5 {[%clk 00:01:30]}
{[%emt 00:00:28]} 51. Rc3 {[%clk 00:01:55]} {[%emt 00:00:45]} Qd5 {[%clk
00:01:46]} {[%emt 00:00:14]} 52. Nf3 {[%clk 00:02:03]} {[%emt 00:00:23]} Qd1
{[%clk 00:01:35]} {[%emt 00:00:40]} 53. g4 {[%clk 00:01:49]} {[%emt 00:00:44]}
Qxa4 {[%clk 00:01:39]} {[%emt 00:00:26]} 54. Kg3 {[%clk 00:02:17]} {[%emt
00:00:03]} Qb4 {[%clk 00:00:45]} {[%emt 00:01:24]} 55. Re3 {[%clk 00:02:45]}
{[%emt 00:00:02]} c4 {[%clk 00:01:10]} {[%emt 00:00:05]} 56. Re6 {[%clk
00:02:56]} {[%emt 00:00:19]} Qb3 {[%clk 00:01:18]} {[%emt 00:00:22]} 57. f5
{[%clk 00:02:38]} {[%emt 00:00:48]} gxf5 {[%clk 00:01:39]} {[%emt 00:00:09]} 58.
gxf5 {[%clk 00:03:05]} {[%emt 00:00:02]} c3 {[%clk 00:00:52]} {[%emt 00:01:17]}
59. Rg6+ {[%clk 00:01:47]} {[%emt 00:01:48]} Kf8 {[%clk 00:01:04]} {[%emt
00:00:18]} 60. Rc6 {[%clk 00:02:14]} {[%emt 00:00:03]} c2 {[%clk 00:01:18]}
{[%emt 00:00:16]} 61. f6 {[%clk 00:02:27]} {[%emt 00:00:18]} Qb8+ {[%clk
00:00:43]} {[%emt 00:01:05]} 62. Kg4 {[%clk 00:02:33]} {[%emt 00:00:24]} Qb4+
{[%clk 00:01:11]} {[%emt 00:00:02]} 63. Kg3 {[%clk 00:02:50]} {[%emt 00:00:13]}
Qb2 {[%clk 00:01:04]} {[%emt 00:00:37]} 64. Rc8+ {[%clk 00:00:58]} {[%emt
00:02:23]} Kf7 {[%clk 00:01:32]} {[%emt 00:00:02]} 65. Rc7+ {[%clk 00:01:21]}
{[%emt 00:00:07]} Kxf6 {[%clk 00:01:49]} {[%emt 00:00:13]} 66. Rc6+ {[%clk
00:01:44]} {[%emt 00:00:08]} Ke7 {[%clk 00:02:13]} {[%emt 00:00:06]} 67. Re6+
{[%emt 00:00:58]} 0-1

[Event "19th Rochefort Chess Festival - Masters"]
[Site "Rochefort, France"]
[Date "2020.02.23"]
[Round "3.4"]
[White "Stets, Dmitry"]
[Black "Maiorov, Nikita"]
[Result "1/2-1/2"]
[TimeControl "1h30/40 - 30' + [30'']"]
[WhiteElo "2358"]
[BlackElo "2506"]

1. e4 {[%clk 01:30:50]} {[%emt 00:00:08]} e5 {[%clk 01:25:42]} {[%emt
00:05:20]} 2. Nf3 {[%clk 01:31:05]} {[%emt 00:00:14]} Nc6 {[%clk 01:26:08]}
{[%emt 00:00:05]} 3. d4 {[%clk 01:31:17]} {[%emt 00:00:18]} exd4 {[%clk
01:26:26]} {[%emt 00:00:12]} 4. Bc4 {[%clk 01:31:38]} {[%emt 00:00:08]} Bc5
{[%clk 01:26:43]} {[%emt 00:00:13]} 5. c3 {[%clk 01:31:54]} {[%emt 00:00:14]}
Nf6 {[%clk 01:27:08]} {[%emt 00:00:05]} 6. cxd4 {[%clk 01:32:10]} {[%emt
00:00:14]} Bb4+ {[%clk 01:27:35]} {[%emt 00:00:03]} 7. Bd2 {[%clk 01:32:27]}
{[%emt 00:00:12]} Bxd2+ {[%clk 01:28:01]} {[%emt 00:00:05]} 8. Nbxd2 {[%clk
01:32:47]} {[%emt 00:00:09]} d5 {[%clk 01:28:27]} {[%emt 00:00:05]} 9. exd5
{[%clk 01:33:04]} {[%emt 00:00:13]} Nxd5 {[%clk 01:28:54]} {[%emt 00:00:03]} 10.
Qb3 {[%clk 01:33:17]} {[%emt 00:00:17]} Na5 {[%clk 01:26:56]} {[%emt 00:02:29]}
11. Qa4+ {[%clk 01:33:36]} {[%emt 00:00:11]} Nc6 {[%clk 01:27:22]} {[%emt
00:00:04]} 12. Qb3 {[%clk 01:33:58]} {[%emt 00:00:09]} Na5 {[%clk 01:27:47]}
{[%emt 00:00:05]} 13. Qa4+ {[%clk 01:34:20]} {[%emt 00:00:08]} Nc6 {[%clk
01:28:13]} {[%emt 00:00:04]} 1/2-1/2

[Event "19th Rochefort Chess Festival - Masters"]
[Site "Rochefort, France"]
[Date "2020.02.23"]
[Round "3.2"]
[White "Van Den Doel, Erik"]
[Black "Colin, Vincent"]
[Result "1-0"]
[TimeControl "1h30/40 - 30' + [30'']"]
[WhiteElo "2583"]
[BlackElo "2359"]

1. d4 {[%clk 01:24:39]} {[%emt 00:06:20]} Nf6 {[%clk 01:30:52]} {[%emt
00:00:07]} 2. Nf3 {[%clk 01:25:05]} {[%emt 00:00:05]} g6 {[%clk 01:31:14]}
{[%emt 00:00:08]} 3. Nbd2 {[%clk 01:25:30]} {[%emt 00:00:05]} Bg7 {[%clk
01:30:06]} {[%emt 00:01:38]} 4. e4 {[%clk 01:25:42]} {[%emt 00:00:19]} d6
{[%clk 01:30:25]} {[%emt 00:00:11]} 5. Bb5+ {[%clk 01:25:58]} {[%emt 00:00:14]}
c6 {[%clk 01:30:20]} {[%emt 00:00:35]} 6. Bd3 {[%clk 01:26:16]} {[%emt
00:00:11]} Nh5 {[%clk 01:29:11]} {[%emt 00:01:39]} 7. O-O {[%clk 01:11:28]}
{[%emt 00:15:20]} Nf4 {[%clk 01:27:53]} {[%emt 00:01:47]} 8. Bc4 {[%clk
01:11:38]} {[%emt 00:00:21]} b5 {[%clk 01:22:53]} {[%emt 00:05:29]} 9. Bb3
{[%clk 01:07:00]} {[%emt 00:05:08]} Qd7 {[%clk 01:20:39]} {[%emt 00:02:44]} 10.
Nb1 {[%clk 00:51:56]} {[%emt 00:15:34]} Qg4 {[%clk 01:18:52]} {[%emt 00:02:16]}
11. Bxf4 {[%clk 00:51:07]} {[%emt 00:01:20]} Qxf4 {[%clk 01:19:14]} {[%emt
00:00:07]} 12. g3 {[%clk 00:45:34]} {[%emt 00:06:05]} Qg4 {[%clk 01:15:17]}
{[%emt 00:04:25]} 13. Qd3 {[%clk 00:39:51]} {[%emt 00:06:13]} O-O {[%clk
01:11:53]} {[%emt 00:03:54]} 14. Re1 {[%clk 00:39:32]} {[%emt 00:00:49]} a6
{[%clk 01:07:14]} {[%emt 00:05:08]} 15. Nbd2 {[%clk 00:36:41]} {[%emt
00:03:21]} e5 {[%clk 00:59:54]} {[%emt 00:07:50]} 16. c3 {[%clk 00:30:36]}
{[%emt 00:06:36]} exd4 {[%clk 00:52:38]} {[%emt 00:07:45]} 17. cxd4 {[%clk
00:27:13]} {[%emt 00:03:53]} Nd7 {[%clk 00:48:44]} {[%emt 00:04:23]} 18. a4
{[%clk 00:26:51]} {[%emt 00:00:53]} Bb7 {[%clk 00:47:07]} {[%emt 00:02:07]} 19.
axb5 {[%clk 00:23:41]} {[%emt 00:03:41]} cxb5 {[%clk 00:46:18]} {[%emt
00:01:18]} 20. Bd1 {[%clk 00:21:06]} {[%emt 00:03:05]} Qe6 {[%clk 00:46:07]}
{[%emt 00:00:39]} 21. h4 {[%clk 00:14:43]} {[%emt 00:06:54]} Qe7 {[%clk
00:40:19]} {[%emt 00:06:17]} 22. Bb3 {[%clk 00:13:11]} {[%emt 00:02:04]} Qd8
{[%clk 00:36:34]} {[%emt 00:04:14]} 23. h5 {[%clk 00:12:41]} {[%emt 00:01:01]}
Qb6 {[%clk 00:35:43]} {[%emt 00:01:21]} 24. Qe3 {[%clk 00:10:42]} {[%emt
00:02:29]} Rae8 {[%clk 00:35:20]} {[%emt 00:00:52]} 25. hxg6 {[%clk 00:10:32]}
{[%emt 00:00:40]} hxg6 {[%clk 00:35:33]} {[%emt 00:00:16]} 26. Qg5 {[%clk
00:10:34]} {[%emt 00:00:29]} Nf6 {[%clk 00:32:42]} {[%emt 00:03:21]} 27. e5
{[%clk 00:10:57]} {[%emt 00:00:08]} dxe5 {[%clk 00:28:54]} {[%emt 00:04:18]} 28.
dxe5 {[%clk 00:10:55]} {[%emt 00:00:32]} Nh7 {[%clk 00:28:02]} {[%emt
00:01:21]} 29. Qf4 {[%clk 00:09:21]} {[%emt 00:02:04]} Re7 {[%clk 00:27:25]}
{[%emt 00:01:06]} 30. Ne4 {[%clk 00:09:08]} {[%emt 00:00:45]} g5 {[%clk
00:20:16]} {[%emt 00:07:39]} 31. Nexg5 {[%clk 00:05:41]} {[%emt 00:03:57]} Nxg5
{[%clk 00:20:11]} {[%emt 00:00:35]} 32. Qxg5 {[%clk 00:05:23]} {[%emt
00:00:48]} Qc6 {[%clk 00:15:13]} {[%emt 00:05:28]} 33. Re3 {[%clk 00:05:00]}
{[%emt 00:00:53]} Rfe8 {[%clk 00:15:15]} {[%emt 00:00:27]} 34. Rae1 {[%clk
00:04:13]} {[%emt 00:01:17]} Qh6 {[%clk 00:13:17]} {[%emt 00:02:28]} 35. Qf5
{[%clk 00:03:20]} {[%emt 00:01:23]} Qh7 {[%clk 00:04:25]} {[%emt 00:09:22]} 36.
Qg4 {[%clk 00:01:42]} {[%emt 00:02:07]} Kf8 {[%clk 00:02:27]} {[%emt 00:02:29]}
37. e6 {[%clk 00:01:28]} {[%emt 00:00:44]} f5 {[%clk 00:02:23]} {[%emt
00:00:35]} 38. Qh4 {[%clk 00:00:41]} {[%emt 00:01:17]} Bxb2 {[%clk 00:01:52]}
{[%emt 00:01:00]} 39. Qg5 {[%clk 00:00:34]} {[%emt 00:00:37]} Rg7 {[%clk
00:00:46]} {[%emt 00:01:37]} 40. e7+ {[%clk 00:00:50]} {[%emt 00:00:13]} Rexe7
{[%clk 00:00:32]} {[%emt 00:00:43]} 41. Rxe7 {[%clk 00:27:45]} {[%emt
00:03:36]} 1-0